bitfinex/quotes_ETHUSD_20220220
["timestamp","ask_amount","ask_price","bid_price","bid_amount"]
[1645397898690,0.545,2650.7,2650.0,0.9948]
[1645397898889,0.00423374,2650.6,2650.0,0.9948]
[1645397899088,0.545,2650.5,2650.0,0.9948]
[1645397899287,0.545,2650.5,2650.2,0.00136578]
[1645397900289,0.545,2650.5,2650.0,0.9948]
[1645397900491,0.545,2650.5,2650.2,0.00136578]
[1645397900738,0.54923374,2650.8,2650.4,0.05]
[1645397900941,0.545,2650.8,2650.3,0.9439657]
[1645397901236,8.32966,2651.6,2650.7,0.05]
[1645397901237,0.545,2651.1,2650.7,0.05]
[1645397901438,3.5,2652.0,2650.4,1.88767]
[1645397901439,0.00422379,2650.7,2650.4,1.88767]
[1645397901643,0.545,2651.4,2650.8,0.01267136]
[1645397901835,0.00422379,2651.3,2650.8,0.01267136]
[1645397902034,0.00422379,2651.3,2651.2,0.05]
[1645397902236,6.81375812,2652.2,2651.2,1.93702]
[1645397902237,0.54922379,2652.1,2651.2,1.93702]
[1645397902436,0.00375812,2652.2,2651.2,1.88702]
[1645397902437,0.00422379,2651.6,2651.2,1.88702]
[1645397902636,0.00422379,2652.0,2651.5,0.05]
[1645397902838,0.00375812,2652.2,2651.9,0.05]
[1645397903033,0.00375812,2652.2,2651.5,0.09143217]
[1645397903034,0.00375812,2652.2,2651.6,0.1885]
[1645397903235,0.00375911,2652.2,2652.1,0.05]
[1645397903938,0.00422379,2653.0,2652.1,0.05]
[1645397904139,0.00422379,2653.0,2652.9,0.05]
[1645397904392,0.545,2653.5,2652.9,2.8786996]
[1645397904588,0.00422379,2653.4,2653.3,0.05]
[1645397904788,0.007,2653.7,2653.1,0.05]
[1645397904992,0.01122379,2653.7,2653.1,0.05]
[1645397905191,0.01122379,2653.7,2652.3,1.88586]
[1645397905192,1.147,2653.5,2651.9,0.94315]
[1645397905395,7.957,2653.3,2651.7,0.00114135]
[1645397905590,7.957,2652.9,2651.7,0.05114135]
[1645397905795,1.147,2652.7,2651.7,0.05114135]
[1645397905996,1.147,2652.5,2651.7,0.05114135]
[1645397906187,1.147,2652.3,2651.7,0.05114135]
[1645397906390,1.147,2652.1,2651.7,0.05]
[1645397906589,1.692,2652.1,2651.7,0.00352509]
[1645397906789,1.692,2652.1,2652.0,0.05]
[1645397907391,1.692,2652.1,2651.8,0.05]
[1645397907589,1.692,2652.1,2651.5,0.9435447]
[1645397907793,1.692,2652.1,2651.8,1.8869]
[1645397907794,0.00422379,2652.0,2651.8,1.8869]
[1645397907994,1.147,2652.1,2651.9,0.05]
[1645397908637,1.147,2652.1,2651.7,0.00366882]
[1645397908829,1.147,2652.0,2651.6,3.7736599]
[1645397909029,1.15122379,2652.0,2651.6,3.7736599]
[1645397909233,1.047,2652.0,2651.6,3.7736599]
[1645397909633,1.047,2652.0,2651.7,0.05]
[1645397909831,1.047,2652.0,2651.9,0.05]
[1645397910030,1.047,2652.0,2651.9,0.99342]
[1645397910433,1.047,2652.0,2651.9,0.94342]
[1645397910633,1.047,2652.0,2651.6,3.7736599]
[1645397911240,1.047,2652.0,2651.9,0.05]
[1645397912583,8.309e-05,2652.2,2652.0,0.547]
[1645397912790,8.309e-05,2652.2,2652.1,0.99332]
[1645397912988,0.00953045,2652.8,2652.1,5.99332]
[1645397913182,0.00953045,2652.8,2652.7,0.05]
[1645397913984,3.507,2653.7,2652.7,0.99298]
[1645397914181,0.007,2653.7,2652.7,0.94298]
[1645397914580,0.007,2653.7,2653.0,0.05]
[1645397914783,0.007,2653.7,2652.6,2.82893]
[1645397915180,0.00230298,2653.3,2652.6,2.82893]
[1645397915381,0.00230298,2653.3,2653.0,0.94304]
[1645397915832,0.00230298,2653.3,2653.0,0.99304]
[1645397916029,0.05075013,2653.7,2653.2,0.05]
[1645397916030,0.007,2653.7,2653.2,0.05]
[1645397916433,0.00366308,2653.3,2652.9,1.88591]
[1645397916629,0.00366308,2653.3,2653.2,0.05]
[1645397917229,0.007,2653.7,2653.2,3.55]
[1645397917429,0.007,2653.7,2653.2,3.5]
[1645397917630,0.00366303,2653.4,2653.1,2.8286941]
[1645397917831,0.03025011,2653.8,2653.3,0.9928034]
[1645397918129,0.03025011,2653.8,2653.7,0.05]
[1645397918529,0.0467678,2654.3,2653.7,0.05]
[1645397918728,0.0467678,2654.3,2653.0,0.09143217]
[1645397918946,0.4467678,2654.4,2653.7,5.0]
[1645397919133,0.4467678,2654.4,2653.7,5.01217128]
[1645397919384,0.05,2655.0,2653.7,6.89678358]
[1645397919581,0.05,2655.0,2653.8,0.1882]
[1645397920183,0.05,2655.0,2653.8,3.6882]
[1645397920387,0.05,2655.0,2654.2,0.94223]
[1645397920584,0.05,2655.0,2654.3,5.384372]
[1645397920882,0.05,2655.0,2654.3,1.884372]
[1645397921082,0.05,2655.0,2654.2,0.1882]
[1645397921587,0.05,2655.0,2654.2,3.9882]
[1645397922483,0.05,2655.0,2654.2,3.8882]
[1645397922484,0.00378286,2654.7,2654.2,3.8882]
[1645397922683,0.00378286,2654.7,2654.2,0.0882]
[1645397922883,0.00378286,2655.0,2654.2,0.0882]
[1645397923542,0.00378286,2655.0,2654.2,10.5845091]
[1645397924443,0.00378286,2655.0,2654.2,9.6422]
[1645397925643,0.00378286,2655.0,2654.3,3.5]
[1645397926046,0.00378286,2655.0,2654.2,14.08441]
[1645397926243,0.00378286,2655.0,2654.3,1.8842685]
[1645397926444,8.286e-05,2655.0,2654.5,5.0]
[1645397926654,8.286e-05,2655.0,2654.6,3.5]
[1645397926904,3.5789845,2656.6,2655.1,0.0008]
[1645397927194,3.5789845,2656.6,2655.2,0.29417571]
[1645397927392,0.0789845,2656.6,2655.2,0.10597571]
[1645397927599,0.05680233,2655.3,2655.2,0.10597571]
[1645397927796,3.5789845,2656.6,2655.3,2.5]
[1645397927994,1.7445697,2656.7,2655.3,0.1882]
[1645397927995,1.7235542,2656.7,2655.3,0.1882]
[1645397928492,0.00418119,2656.6,2655.3,0.1882]
[1645397928692,0.00418119,2656.6,2655.5,1.8834406]
[1645397929294,0.00418119,2656.6,2655.6,0.94184]
[1645397929502,3.94998557,2657.9,2655.7,4.4417551]
[1645397929796,0.51137,2658.1,2656.1,0.01231219]
[1645397929995,0.04035807,2657.1,2656.1,0.01231219]
[1645397930742,0.04035807,2657.1,2656.1,0.95395979]
[1645397930952,0.51137,2658.1,2656.2,3.5]
[1645397931141,0.51137,2658.1,2655.9,5.57122]
[1645397931142,0.453,2658.0,2655.9,5.57122]
[1645397931344,1.053,2658.0,2655.9,5.57122]
[1645397931543,1.053,2658.0,2655.9,7.45429]
[1645397932152,0.00229348,2657.1,2656.2,1.883]
[1645397932348,0.00229348,2657.1,2656.3,3.6882]
[1645397932546,0.00229348,2657.1,2656.3,5.5708916]
[1645397932750,0.00229348,2657.1,2656.3,5.8708916]
[1645397932751,9.348e-05,2657.1,2656.3,5.8708916]
[1645397932955,0.04356964,2657.5,2656.4,16.52]
[1645397932956,0.03439708,2657.5,2656.4,16.52]
[1645397933150,0.14670926,2658.7,2656.8,0.01270645]
[1645397933349,3.9372543,2659.1,2657.4,0.9411387]
[1645397933554,3.9372543,2659.1,2656.9,11.708]
[1645397933555,3.3842543,2659.1,2657.5,3.5]
[1645397933757,3.3842543,2659.1,2657.5,0.09200546]
[1645397933951,3.3842543,2659.1,2657.6,0.188]
[1645397934154,3.3842543,2659.1,2657.6,14.5304754]
[1645397934388,3.3842543,2659.1,2657.7,10.834905]
[1645397934585,2.8842543,2659.1,2658.3,1.8815273]
[1645397934793,2.8842543,2659.1,2658.4,0.188]
[1645397934794,2.5842543,2659.1,2658.4,0.188]
[1645397934984,2.5842543,2659.1,2658.1,0.4597479]
[1645397935186,2.5842543,2659.1,2658.2,0.2717479]
[1645397935985,3.5,2659.0,2658.2,0.2717479]
[1645397936383,3.8,2659.0,2658.2,0.2717479]
[1645397936589,5.51137,2658.8,2658.2,0.2717479]
[1645397936787,0.94156,2658.3,2656.5,0.0126]
[1645397936989,1.88311,2658.6,2656.5,0.13819997]
[1645397936990,3.55002,2658.2,2656.5,0.13819997]
[1645397937186,3.5,2658.4,2656.5,0.13819997]
[1645397937391,0.453,2658.5,2656.6,13.4027]
[1645397937584,0.00378484,2658.7,2656.6,1.8827]
[1645397937788,0.00378484,2658.7,2656.5,0.13819997]
[1645397937789,5.0,2658.4,2656.5,0.13819997]
[1645397937986,3.5,2658.3,2656.5,0.13819997]
[1645397938232,0.00378538,2657.8,2656.5,0.13819997]
[1645397938833,0.00378538,2657.8,2656.4,0.1203952]
[1645397938834,5.0,2657.7,2656.4,0.1203952]
[1645397939034,3.953,2657.6,2656.4,0.1203952]
[1645397939232,4.953,2657.6,2656.4,0.1203952]
[1645397939433,0.00357547,2657.2,2656.4,0.1203952]
[1645397939638,0.453,2657.1,2655.7,0.251]
[1645397939835,3.5,2657.0,2655.7,0.251]
[1645397940043,5.9421,2656.8,2655.7,0.251]
[1645397940236,0.96437,2656.9,2655.7,0.24456663]
[1645397940237,3.953,2656.7,2655.7,0.24456663]
[1645397940434,0.453,2656.6,2655.7,0.24456663]
[1645397942388,0.04406035,2656.7,2655.7,0.24456663]
[1645397942786,0.1176,2656.6,2655.7,0.24456663]
[1645397943187,0.07264953,2656.7,2655.7,0.24456663]
[1645397943387,0.1176,2656.6,2655.7,0.24456663]
[1645397944188,0.1176,2656.8,2655.7,0.24456663]
[1645397944489,1.01479001,2656.7,2655.7,3.54456663]
[1645397945095,0.07265001,2656.7,2655.7,3.54456663]
[1645397945293,1.88398,2657.4,2655.7,3.54456663]
[1645397945294,0.1175,2657.6,2656.0,0.01257382]
[1645397945495,0.1175,2657.6,2656.2,0.94162]
[1645397945496,0.07025505,2656.7,2656.2,0.94162]
[1645397945747,0.07025505,2656.7,2656.2,0.9416108]
[1645397945947,5.505e-05,2656.7,2656.3,0.1882]
[1645397946346,0.00369694,2657.2,2656.3,0.1882]
[1645397946547,0.0041377,2657.8,2656.2,0.188]
[1645397946749,5.0,2657.8,2656.2,0.188]
[1645397946952,0.0016,2656.7,2655.8,3.5]
[1645397947148,0.0016,2656.7,2655.7,3.54456663]
[1645397947348,0.0016,2656.7,2655.9,0.94172]
[1645397947547,0.0016,2656.7,2656.0,3.5]
[1645397947754,0.0016,2656.7,2655.9,1.8834353]
[1645397947949,0.0016,2656.7,2656.0,3.5]
[1645397948149,0.0016,2656.7,2655.8,3.5]
[1645397948348,0.0016,2656.7,2655.7,3.3]
[1645397949248,0.1179,2656.6,2655.7,3.3]
[1645397949481,0.0041377,2656.5,2655.7,3.3]
[1645397949681,0.1179,2656.7,2655.7,3.3]
[1645397949885,0.0041377,2656.6,2655.7,3.3]
[1645397950082,0.0041377,2656.8,2655.7,3.3]
[1645397950483,0.00796122,2656.8,2656.1,0.00382463]
[1645397951285,0.0041377,2656.8,2655.7,3.3]
[1645397951791,0.0041377,2656.8,2656.3,0.00382448]
[1645397951792,0.00796143,2656.8,2656.3,0.00382448]
[1645397951984,0.00382373,2656.8,2656.3,0.00382448]
[1645397952388,0.0016,2656.5,2656.3,0.00382448]
[1645397952583,0.0016,2656.5,2656.0,3.5]
[1645397952788,0.0016,2656.5,2656.4,0.00382442]
[1645397953635,0.0016,2656.5,2655.1,2.97647394]
[1645397953935,0.0016,2656.5,2656.3,0.00382448]
[1645397954941,0.0016,2656.5,2655.5,2.0715526]
[1645397955137,0.0016,2656.5,2656.3,0.00382451]
[1645397956143,0.1205377,2657.2,2656.3,3.3]
[1645397956343,0.00382369,2656.8,2656.4,3.32699896]
[1645397956541,0.00382369,2656.8,2656.3,3.30382451]
[1645397957383,0.453,2657.7,2656.3,3.3]
[1645397957585,0.00382382,2656.8,2656.4,0.00382442]
[1645397957986,2.382e-05,2656.8,2656.4,0.00382442]
[1645397958182,0.07263438,2657.5,2656.4,0.00382442]
[1645397958183,0.07263438,2657.5,2656.8,0.00077618]
[1645397958384,0.07263438,2657.5,2656.9,0.9413161]
[1645397958583,0.0041377,2657.9,2656.8,0.00077618]
[1645397961234,0.00223525,2657.5,2656.8,0.00077618]
[1645397961428,0.00223525,2657.5,2656.8,40.00077618]
[1645397962028,0.0041377,2657.9,2656.8,40.00077618]
[1645397962331,0.00382573,2657.3,2656.8,40.00077618]
[1645397963335,0.0041377,2657.5,2656.8,40.00077618]
[1645397963532,0.00382579,2657.2,2656.8,40.00077618]
[1645397964584,0.4571377,2657.7,2656.8,40.00077618]
[1645397964778,0.00382582,2657.1,2656.8,40.00077618]
[1645397965485,0.45682582,2657.1,2656.8,40.00077618]
[1645397965682,0.29016548,2657.3,2656.8,40.00077618]
[1645397965880,1.29016548,2657.3,2656.8,40.00077618]
[1645397966077,0.00382585,2657.1,2656.8,40.00077618]
[1645397966480,0.29016548,2657.0,2656.8,40.00077618]
[1645397967281,0.29399136,2657.0,2656.8,40.00077618]
[1645397967880,0.29490727,2657.0,2656.8,40.00077618]
[1645397968136,0.29108139,2657.0,2656.8,40.00077618]
[1645397968338,0.29490727,2657.0,2656.8,40.00077618]
[1645397969339,0.29108139,2657.0,2656.8,40.00077618]
[1645397969536,0.29490727,2657.0,2656.8,40.00077618]
[1645397970535,0.29108139,2657.0,2656.8,40.00077618]
[1645397970941,0.29490727,2657.0,2656.8,40.00077618]
[1645397971135,0.00474179,2657.0,2656.8,40.00077618]
[1645397971334,0.29016548,2656.9,2656.8,40.00077618]
[1645397973088,0.00474182,2657.0,2656.8,40.00077618]
[1645397973089,0.00091591,2657.0,2656.8,40.00077618]
[1645397973283,0.05737718,2657.5,2656.9,2.5]
[1645397973782,0.05737718,2657.5,2656.9,2.688]
[1645397974184,0.0041377,2657.7,2656.9,2.5]
[1645397974780,0.0041377,2657.7,2656.9,2.688]
[1645397975639,0.0041377,2657.7,2657.0,3.5]
[1645397976740,0.00223523,2657.5,2657.0,3.5]
[1645397977141,0.00223523,2657.5,2656.9,2.5]
[1645397977341,0.00223523,2657.5,2657.0,3.5]
[1645397977541,0.00223523,2657.5,2656.9,2.5]
[1645397977745,0.0041377,2657.7,2656.9,2.5]
[1645397977945,0.00382567,2657.4,2657.0,3.5]
[1645397978849,0.00517997,2657.7,2657.0,3.5]
[1645397979246,2.57e-05,2657.3,2657.0,3.5]
[1645397980184,0.00517997,2657.7,2656.9,5.8]
[1645397981583,0.00222949,2657.5,2656.9,5.8]
[1645397982488,0.00517997,2657.7,2656.9,5.8]
[1645397982884,0.00382553,2657.5,2657.0,0.00382624]
[1645397983639,0.00517997,2657.7,2656.9,5.8]
[1645397983845,0.00517997,2657.7,2657.0,3.5]
[1645397984039,0.00382557,2657.5,2657.0,0.00382628]
[1645397984842,0.00517997,2657.7,2656.9,5.8]
[1645397985044,0.00517997,2657.7,2656.9,3.3]
[1645397985245,0.00517997,2657.7,2657.0,0.00382628]
[1645397985246,0.00382557,2657.5,2657.0,0.00382628]
[1645397986045,0.453,2657.6,2656.9,3.3]
[1645397986244,0.0041377,2657.5,2656.9,3.3]
[1645397986450,0.00382557,2657.5,2657.0,0.00382628]
[1645397986648,0.453,2657.4,2657.0,0.00382628]
[1645397987084,0.1176,2657.3,2657.0,0.00382628]
[1645397987286,0.5706,2657.3,2656.9,11.85674]
[1645397987684,0.5706,2657.3,2657.0,0.00382624]
[1645397987884,0.453,2657.3,2657.0,0.00382624]
[1645397988486,0.453,2657.3,2656.9,11.85674]
[1645397988892,0.453,2657.3,2657.0,0.0038262]
[1645397989691,0.453,2657.3,2656.9,11.85674]
[1645397989892,0.453,2657.3,2657.0,0.0038262]
[1645397990979,0.453,2657.3,2656.9,11.85674]
[1645397991380,0.453,2657.3,2657.0,0.0038262]
[1645397992180,0.453,2657.3,2656.9,11.85674]
[1645397992380,0.453,2657.3,2657.0,0.0038262]
[1645397993382,0.453,2657.3,2656.9,11.85674]
[1645397993583,0.453,2657.3,2657.0,0.0038262]
[1645397994586,0.453,2657.3,2656.9,11.85674]
[1645397994787,0.453,2657.3,2657.0,0.0038262]
[1645397995889,0.453,2657.3,2656.9,11.85674]
[1645397996088,0.453,2657.3,2657.0,0.0038262]
[1645397996488,1.88408,2657.2,2657.0,0.0038262]
[1645397996687,0.453,2657.1,2657.0,0.0038262]
[1645397996891,0.453,2657.1,2656.9,11.85674]
[1645397997088,0.453,2657.1,2657.0,0.00382616]
[1645397997288,0.753,2657.1,2657.0,0.00382616]
[1645397997488,1.39498,2657.1,2657.0,0.00382616]
[1645397997688,0.453,2657.1,2657.0,0.00382616]
[1645397998139,0.453,2657.1,2656.9,11.85674]
[1645397998343,5.753,2657.1,2656.9,11.85674]
[1645397998538,0.1147,2657.0,2656.9,11.27114]
[1645397998736,0.5611,2657.0,2656.9,11.27114]
[1645397998938,1.0141,2657.0,2656.9,11.27114]
[1645397999336,2.0141,2657.0,2656.9,11.27114]
[1645397999740,1.8994,2657.0,2656.9,11.27114]
[1645397999937,2.8416832,2657.0,2656.9,11.27114]
[1645398000342,1.99996,2656.9,2656.8,0.00077618]
[1645398000544,0.94258,2656.5,2655.1,0.0008]
[1645398000743,16.52,2656.1,2655.1,0.0008]
[1645398000940,0.3,2655.8,2655.1,0.0008]
[1645398001142,17.03137,2655.6,2655.1,0.0008]
[1645398001340,11.52,2655.4,2655.1,0.0008]
[1645398001542,0.753,2655.5,2655.1,0.0008]
[1645398001543,0.5549,2655.3,2655.1,0.0008]
[1645398001750,0.4464,2655.3,2655.1,0.0008]
[1645398002000,2.38806367,2656.5,2655.1,0.00462504]
[1645398002200,0.8994,2656.6,2655.1,0.00462504]
[1645398002394,1.18515627,2656.7,2655.1,0.00462504]
[1645398002593,1.18515627,2656.7,2655.2,3.48414801]
[1645398002806,1.18515627,2656.7,2655.4,0.9419]
[1645398002999,1.18515627,2656.7,2655.3,3.5]
[1645398003000,5.627e-05,2656.7,2655.9,0.01247988]
[1645398003193,5.627e-05,2656.7,2656.0,0.3512349]
[1645398003393,0.4464,2656.8,2656.1,3.5]
[1645398003596,0.4464,2656.8,2656.2,1.59958749]
[1645398003793,0.00115519,2657.0,2656.3,3.5]
[1645398003995,0.00115519,2657.0,2656.5,0.94151]
[1645398004195,0.00115519,2657.0,2656.4,0.12385739]
[1645398004598,0.00115519,2657.0,2656.5,0.0038242]
[1645398004802,0.00115519,2657.0,2656.7,0.3512349]
[1645398004994,0.00115519,2657.0,2656.5,0.0038242]
[1645398005194,0.91468744,2658.1,2656.5,0.0038242]
[1645398005195,7.38,2658.2,2656.6,2.5]
[1645398005504,6.71325389,2658.9,2657.0,5.3783]
[1645398005769,4.32519022,2658.9,2657.5,1.88212]
[1645398006066,4.97231797,2659.1,2657.5,1.88212]
[1645398006067,2.5842543,2659.1,2657.9,0.3783]
[1645398006266,2.5842543,2659.1,2658.3,1.24077]
[1645398006567,13.35,2660.2,2658.4,6.0]
[1645398006568,2.54806367,2660.0,2658.4,6.0]
[1645398006769,0.5,2660.1,2658.4,6.0]
[1645398006770,4.67630582,2660.3,2658.8,0.01276175]
[1645398006966,1.62234641,2659.2,2658.9,3.46949997]
[1645398007165,0.1049598,2660.6,2659.5,1.8803546]
[1645398007370,0.1049598,2660.6,2659.5,2.5833546]
[1645398007565,0.1049598,2660.6,2659.1,3.5]
[1645398007763,0.1049598,2660.6,2660.0,0.3512349]
[1645398008166,0.1049598,2660.6,2659.5,3.5]
[1645398008369,0.1049598,2660.6,2659.2,1.0]
[1645398008370,0.00220894,2660.2,2659.2,6.19930442]
[1645398008569,0.00220894,2660.2,2659.3,5.0]
[1645398008764,0.00220894,2660.2,2659.5,1.24035]
[1645398009066,0.00220894,2660.2,2659.6,0.453]
[1645398009067,4.5982038,2659.7,2659.6,0.453]
[1645398009268,4.5982038,2659.7,2659.3,0.453]
[1645398009511,4.5982038,2659.7,2659.0,1.31229313]
[1645398009810,4.5982038,2659.7,2657.5,0.38249]
[1645398009811,5.0,2659.4,2656.9,0.453]
[1645398010017,2.5,2659.5,2656.7,0.5]
[1645398010018,0.3,2659.1,2656.7,0.5]
[1645398010209,0.3,2659.1,2655.7,5.0]
[1645398010210,0.01236423,2658.3,2655.7,5.0]
[1645398010411,0.01236423,2658.3,2655.8,1.59913722]
[1645398010412,5.0678,2658.2,2655.8,1.59913722]
[1645398010609,5.0678,2658.2,2655.5,5.0905735]
[1645398010610,5.51137,2657.7,2655.7,0.5]
[1645398010816,5.51137,2657.7,2655.6,3.5]
[1645398010817,8.05819,2657.6,2655.6,3.5]
[1645398011011,8.05819,2657.6,2655.5,3.2071613]
[1645398011012,5.0,2657.1,2656.1,0.01544393]
[1645398011213,0.8,2657.2,2656.1,0.01544393]
[1645398011408,0.08611616,2657.5,2656.0,5.0]
[1645398011609,0.2473,2657.7,2655.5,0.38249]
[1645398011610,0.1973,2657.7,2655.5,0.38249]
[1645398011910,0.1973,2657.7,2655.0,2.82499]
[1645398011911,0.78849997,2657.7,2654.6,3.53842177]
[1645398012109,1.46157823,2657.0,2656.5,0.01266484]
[1645398012309,1.46157823,2657.0,2655.7,3.53842177]
[1645398012514,3.5,2657.3,2655.6,0.20097189]
[1645398012710,1.46157823,2657.2,2655.6,0.01272829]
[1645398012909,1.46157823,2657.2,2656.5,0.00385921]
[1645398013343,0.33549997,2657.7,2656.5,0.00385921]
[1645398013554,0.1973,2657.7,2656.5,0.00385921]
[1645398013751,0.1973,2657.7,2656.9,0.01202423]
[1645398014147,0.1973,2657.7,2656.5,0.00385921]
[1645398014148,1.46157823,2657.6,2656.5,0.00385921]
[1645398014349,0.13819997,2658.3,2656.5,0.94142]
[1645398014549,0.13819997,2658.3,2656.3,1.0]
[1645398014550,0.1881,2658.7,2657.6,3.53842177]
[1645398014750,2.82371,2660.4,2657.5,0.01208013]
[1645398014751,1.46157823,2659.2,2657.7,0.641]
[1645398014950,5.0,2660.5,2657.7,0.641]
[1645398014951,1.46157823,2659.6,2657.8,3.953]
[1645398015154,0.188,2660.3,2658.6,3.53842177]
[1645398015447,0.5,2660.0,2659.0,0.94039]
[1645398015846,0.5,2660.0,2659.1,0.753]
[1645398016050,0.1049598,2660.6,2659.4,0.012918]
[1645398016255,1.46157823,2661.4,2659.9,3.0]
[1645398016256,0.5,2661.2,2659.9,3.0]
[1645398016449,0.5,2661.2,2660.1,1.0]
[1645398016651,0.5,2661.2,2660.2,0.453]
[1645398016906,1.46157823,2660.8,2660.2,0.453]
[1645398017115,0.13819997,2661.7,2660.6,3.53842177]
[1645398017310,1.46157823,2662.2,2660.8,3.53842177]
[1645398017506,0.0263267,2662.3,2661.0,0.9398]
[1645398017711,1.96157823,2662.0,2661.1,0.453]
[1645398017905,1.96157823,2662.0,2660.6,0.3367]
[1645398017906,1.46157823,2661.2,2660.6,0.3367]
[1645398018106,3.5,2661.9,2660.6,0.3367]
[1645398018107,0.1879,2661.8,2660.6,0.3367]
[1645398018405,1.46157823,2661.6,2660.6,0.3367]
[1645398018805,0.00392543,2661.3,2661.0,8.55674]
[1645398019111,1.5744,2661.0,2659.6,0.1879]
[1645398019312,1.5744,2661.0,2658.4,0.5]
[1645398019313,1.46157823,2659.7,2658.4,0.5]
[1645398019512,1.46157823,2659.6,2658.4,0.5]
[1645398019705,0.188,2660.6,2658.4,0.5]
[1645398019706,1.46157823,2660.5,2658.6,3.53842177]
[1645398019910,0.08611616,2660.9,2658.7,0.453]
[1645398019911,1.46157823,2660.9,2658.7,0.453]
[1645398020106,3.5,2660.8,2658.7,0.453]
[1645398020649,0.00409032,2660.7,2658.7,0.753]
[1645398020847,0.00409032,2660.7,2659.0,0.94052]
[1645398021051,2.10386852,2660.9,2659.2,3.53842177]
[1645398021248,0.50409032,2660.9,2659.5,3.53842177]
[1645398021451,0.00392546,2661.2,2659.7,3.0039]
[1645398021650,0.00392546,2661.2,2660.8,3.53842177]
[1645398021853,2.55654933,2662.4,2660.9,4.4397265]
[1645398021854,0.2140267,2662.3,2660.9,4.4397265]
[1645398022051,2.55654933,2662.4,2661.4,3.780952]
[1645398022052,1.53287603,2662.4,2661.4,3.780952]
[1645398022251,7.866464,2663.9,2661.6,1.5]
[1645398022252,0.486464,2663.9,2661.6,1.5]
[1645398022453,3.20608379,2664.3,2661.7,4.34044772]
[1645398022651,3.20608379,2664.3,2663.1,5.0]
[1645398022852,0.03103928,2664.4,2661.7,16.78344772]
[1645398022853,0.04035807,2664.2,2663.2,0.93899]
[1645398023263,0.01893283,2664.4,2662.4,2.82933088]
[1645398023264,0.10323649,2664.3,2662.4,2.82933088]
[1645398023450,0.13819997,2664.7,2662.6,0.01154059]
[1645398023451,0.453,2664.5,2662.6,0.01154059]
[1645398023666,4.97216932,2663.9,2662.6,0.01154059]
[1645398023848,3.953,2663.8,2662.6,0.01154059]
[1645398024052,0.453,2663.7,2662.6,0.01154059]
[1645398024252,3.5,2663.6,2662.6,4.059e-05]
[1645398024500,4.97216932,2663.1,2662.6,4.059e-05]
[1645398024696,0.453,2663.1,2662.6,4.059e-05]
[1645398024895,5.97216932,2662.9,2662.6,4.059e-05]
[1645398025095,3.0,2662.7,2662.0,0.07340505]
[1645398025295,0.953,2662.8,2662.0,0.07340505]
[1645398026100,1.0,2663.3,2662.5,0.02783068]
[1645398026309,4.97216932,2664.0,2663.0,0.02783068]
[1645398026505,0.13819997,2664.7,2662.4,0.01154059]
[1645398026704,3.20607056,2664.9,2662.8,5.0]
[1645398026904,0.453,2665.5,2664.1,0.02783068]
[1645398027099,0.453,2665.5,2663.9,0.02783068]
[1645398027100,4.97216932,2665.2,2663.9,0.02783068]
[1645398027301,0.5,2664.3,2663.9,0.02783068]
[1645398027500,0.453,2664.9,2664.2,0.02783068]
[1645398027699,0.0185,2666.8,2664.0,0.9387232]
[1645398027700,0.5,2664.4,2664.0,0.9387232]
[1645398027899,0.5,2664.4,2664.1,0.02783068]
[1645398028154,0.453,2665.6,2663.5,3.5]
[1645398028455,0.403,2665.3,2663.4,0.1876]
[1645398028653,0.453,2665.3,2664.6,0.02783068]
[1645398028853,0.00395351,2664.7,2663.9,0.02783068]
[1645398029453,0.00395351,2664.7,2663.3,0.07340505]
[1645398029653,0.45695351,2664.7,2663.4,0.02783068]
[1645398029853,0.00395351,2664.7,2664.1,0.02783068]
[1645398030053,0.00395351,2664.7,2664.2,0.02783068]
[1645398030253,0.00395351,2664.7,2663.3,0.1468101]
[1645398030453,0.00395365,2664.5,2663.4,0.1875]
[1645398030856,0.00395365,2664.5,2663.3,0.1468101]
[1645398031065,0.00395365,2664.5,2663.4,0.1875]
[1645398031253,0.00395365,2664.5,2663.3,0.1404175]
[1645398031460,5.0,2664.0,2663.3,0.1404175]
[1645398031656,0.0126783,2664.2,2663.3,0.1404175]
[1645398031657,5.0,2663.8,2663.3,0.1404175]
[1645398031915,0.01209548,2663.5,2662.9,0.01154059]
[1645398032303,3.3,2663.7,2662.9,0.01154059]
[1645398032304,8.6,2663.7,2662.9,4.059e-05]
[1645398032506,5.0,2663.0,2662.9,4.059e-05]
[1645398032703,0.13819997,2662.9,2662.4,0.01154059]
[1645398032904,0.453,2662.8,2662.4,0.01154059]
[1645398033103,0.13819997,2662.9,2662.8,1.35899999]
[1645398033303,0.453,2663.7,2662.8,1.35899999]
[1645398033503,0.5,2663.5,2662.8,1.35899999]
[1645398034507,0.1895,2663.9,2662.8,1.35899999]
[1645398035009,0.1895,2663.9,2662.9,3.5]
[1645398035307,0.01286441,2665.2,2662.9,3.5]
[1645398035308,0.4496,2665.1,2663.3,5.0]
[1645398035507,0.4496,2665.1,2663.4,3.953]
[1645398035746,5.0,2665.0,2662.8,1.35899999]
[1645398035956,0.01298425,2665.2,2662.9,3.5]
[1645398036348,0.0796159,2666.0,2662.9,3.953]
[1645398036548,0.453,2665.4,2662.9,3.953]
[1645398036747,0.453,2665.4,2663.2,5.0]
[1645398036748,6.164e-05,2663.7,2663.2,5.0]
[1645398037045,6.164e-05,2663.7,2663.3,3.8]
[1645398037247,6.164e-05,2663.7,2663.6,5.0]
[1645398037446,0.4496,2666.2,2663.6,5.0]
[1645398037447,0.0296159,2666.0,2663.9,0.3783]
[1645398037646,0.0296159,2666.0,2664.4,0.0120924]
[1645398037852,0.0296159,2666.0,2664.6,0.3]
[1645398038245,0.0296159,2666.0,2664.5,0.453]
[1645398038246,0.0296159,2666.0,2664.5,0.753]
[1645398038647,0.0296159,2666.0,2664.5,0.453]
[1645398038853,0.01211167,2665.8,2663.9,0.453]